bitfinex-derivatives/quotes_BTCF0:USTF0_20241110
["timestamp","ask_amount","ask_price","bid_price","bid_amount"]
[1731232918499,0.3608,79485.0,79481.0,0.12168298]
[1731232918692,0.0321,79486.0,79481.0,0.12168298]
[1731232918886,0.02793444,79494.0,79481.0,0.12168298]
[1731232918887,0.15472,79496.0,79481.0,0.12168298]
[1731232919081,0.15472,79496.0,79478.0,0.0312]
[1731232919395,0.15472,79496.0,79481.0,0.12168298]
[1731232919793,0.455937,79497.0,79481.0,0.24336596]
[1731232919988,0.456577,79497.0,79494.0,0.12168298]
[1731232920186,0.455937,79497.0,79494.0,0.12168298]
[1731232920491,0.455937,79497.0,79484.0,0.3608]
[1731232920883,0.455937,79497.0,79488.0,0.12168298]
[1731232921694,0.455937,79497.0,79489.0,0.12168298]
[1731232922591,0.618297,79497.0,79484.0,0.3608]
[1731232923201,0.3608,79492.0,79483.0,0.12168298]
[1731232924093,0.3608,79492.0,79477.0,0.12168298]
[1731232924398,0.3608,79484.0,79469.0,0.00084]
[1731232924595,0.3608,79484.0,79461.0,0.3608]
[1731232924596,0.0951,79483.0,79474.0,0.12168298]
[1731232924998,0.0951,79483.0,79461.0,0.3608]
[1731232925294,0.0951,79483.0,79473.0,0.12168298]
[1731232925603,0.3608,79477.0,79473.0,0.12168298]
[1731232926097,0.3608,79477.0,79467.0,0.12168298]
[1731232927398,0.3608,79477.0,79461.0,0.3608]
[1731232927603,0.3608,79477.0,79472.0,0.12168298]
[1731232928303,0.3608,79477.0,79466.0,0.12168298]
[1731232928507,0.16236,79476.0,79466.0,0.12168298]
[1731232929211,0.16236,79476.0,79461.0,0.3608]
[1731232929398,0.16236,79476.0,79462.0,0.12168298]
[1731232929903,0.16236,79476.0,79461.0,0.3608]
[1731232930095,0.16236,79476.0,79462.0,0.12168298]
[1731232930492,0.3608,79470.0,79461.0,0.3608]
[1731232930814,0.3608,79470.0,79454.0,0.0308]
[1731232931005,0.3608,79470.0,79450.0,0.12168298]
[1731232931706,0.3608,79470.0,79447.0,0.02784531]
[1731232932004,0.3608,79470.0,79456.0,0.12168298]
[1731232933004,0.3608,79470.0,79454.0,0.3608]
[1731232933005,0.3608,79470.0,79455.0,0.12168298]
[1731232933200,0.16236,79469.0,79455.0,0.12168298]
[1731232936804,0.3608,79470.0,79463.0,0.12357057]
[1731232937000,0.16236,79469.0,79463.0,0.12357057]
[1731232937407,0.3608,79470.0,79463.0,0.12357057]
[1731232937606,0.16236,79469.0,79463.0,0.12357057]
[1731232938911,0.3608,79470.0,79463.0,0.12357057]
[1731232939216,0.16236,79479.0,79464.0,0.12168298]
[1731232939508,0.3608,79477.0,79472.0,0.12168298]
[1731232941405,0.16236,79479.0,79472.0,0.12168298]
[1731232941607,0.3608,79478.0,79472.0,0.12168298]
[1731232943106,0.3608,79478.0,79472.0,0.48248298]
[1731232943314,0.15512,79490.0,79473.0,0.3608]
[1731232943614,0.61358445,79497.0,79485.0,0.12168298]
[1731232943913,0.61358445,79497.0,79486.0,0.032]
[1731232943914,0.61294445,79497.0,79486.0,0.032]
[1731232944714,0.3608,79493.0,79486.0,0.032]
[1731232945217,0.61358445,79497.0,79487.0,0.3608]
[1731232945414,0.61294445,79497.0,79487.0,0.3608]
[1731232947118,0.45782445,79497.0,79487.0,0.3608]
[1731232947932,0.81862445,79497.0,79487.0,0.3608]
[1731232948917,0.3608,79490.0,79472.0,0.48248298]
[1731232949112,0.48248298,79483.0,79472.0,0.3608]
[1731232949315,0.48248298,79483.0,79466.0,0.18358298]
[1731232949316,0.0617,79482.0,79466.0,0.18358298]
[1731232952015,0.0617,79482.0,79466.0,0.0619]
[1731232953216,0.08902408,79482.0,79466.0,0.0619]
[1731232953708,0.08902408,79482.0,79466.0,0.18358298]
[1731232953914,0.08902408,79482.0,79471.0,0.3608]
[1731232954317,0.08902408,79482.0,79472.0,0.12168298]
[1731232954811,0.0617,79482.0,79472.0,0.12168298]
[1731232956121,0.0305,79482.0,79479.0,0.12168298]
[1731232956320,0.51664,79483.0,79479.0,0.12168298]
[1731232956523,0.51592,79483.0,79473.0,0.12168298]
[1731232959020,0.51592,79483.0,79471.0,0.3608]
[1731232959420,0.12168298,79480.0,79471.0,0.3608]
[1731232962432,0.54485051,79483.0,79471.0,0.3608]
[1731232962627,0.54421051,79483.0,79471.0,0.3608]
[1731232963934,0.38909051,79483.0,79471.0,0.48248298]
[1731232964133,0.1476,79482.0,79471.0,0.48248298]
[1731232964731,0.1476,79482.0,79471.0,0.3608]
[1731232966839,0.1476,79482.0,79471.0,0.48248298]
[1731232967131,0.1476,79481.0,79471.0,0.3608]
[1731232968536,0.12168298,79475.0,79471.0,0.3608]
[1731232968737,0.12168298,79481.0,79471.0,0.3608]
[1731232969034,0.3608,79474.0,79466.0,0.0306]
[1731232970136,0.3608,79474.0,79472.0,0.12168298]
[1731232970341,0.3608,79474.0,79466.0,0.0306]
[1731232976648,0.38921952,79474.0,79466.0,0.0306]
[1731232976838,0.02841952,79474.0,79466.0,0.0306]
[1731232977034,0.3608,79470.0,79466.0,0.0306]
[1731232978145,0.3608,79468.0,79458.0,0.0008]
[1731232978445,0.12168298,79464.0,79455.0,0.03758973]
[1731232978644,0.26928298,79464.0,79451.0,0.03758973]
[1731232978849,0.3608,79452.0,79445.0,0.00016222]
[1731232979044,0.12168298,79450.0,79445.0,0.00016222]
[1731232981348,0.14955099,79450.0,79445.0,0.00016222]
[1731232981648,0.3776,79449.0,79445.0,0.00016222]
[1731232982043,0.3776,79448.0,79445.0,0.00016222]
[1731232982240,0.3776,79449.0,79445.0,0.00016222]
[1731232982735,0.14955099,79450.0,79445.0,0.00016222]
[1731232982736,0.3776,79448.0,79445.0,0.00016222]
[1731232982942,0.3776,79449.0,79445.0,0.00016222]
[1731232983143,0.14955099,79450.0,79445.0,0.00016222]
[1731232983342,0.3776,79449.0,79445.0,0.00016222]
[1731232983748,0.3776,79448.0,79445.0,0.00016222]
[1731232983948,0.7216,79446.0,79445.0,0.00016222]
[1731232984555,1.0992,79446.0,79445.0,0.00016222]
[1731232988257,0.86924,79446.0,79445.0,0.00016222]
[1731232989348,0.7216,79446.0,79445.0,0.00016222]
[1731232989541,0.86404,79446.0,79445.0,0.00016222]
[1731232990051,0.88922581,79446.0,79445.0,0.00016222]
[1731232992045,0.86404,79446.0,79445.0,0.00016222]
[1731232995957,0.3608,79446.0,79445.0,0.1218452]
[1731232996148,0.3608,79446.0,79445.0,0.00016222]
[1731232996456,0.3608,79446.0,79445.0,0.06236222]
[1731232996860,0.3608,79446.0,79445.0,0.03226222]
[1731232999850,0.3608,79446.0,79445.0,0.00016222]
[1731233000052,0.14244,79449.0,79445.0,0.00016222]
[1731233003250,0.14244,79449.0,79446.0,0.00393474]
[1731233003455,0.14244,79449.0,79448.0,0.12168298]
[1731233003663,0.14244,79458.0,79448.0,0.12561772]
[1731233003860,0.14244,79458.0,79449.0,0.00393474]
[1731233004063,0.14244,79458.0,79450.0,0.00393474]
[1731233004360,0.14244,79458.0,79448.0,0.12168298]
[1731233004361,0.38900879,79460.0,79451.0,0.00393445]
[1731233004552,0.38900879,79460.0,79452.0,0.00393445]
[1731233004553,0.17064879,79460.0,79452.0,0.00393445]
[1731233004757,0.14244,79460.0,79453.0,0.00393445]
[1731233004963,0.14244,79460.0,79448.0,0.12168298]
[1731233004964,0.14244,79460.0,79454.0,0.00393445]
[1731233005262,0.14244,79460.0,79448.0,0.12168298]
[1731233005458,0.36268834,79462.0,79454.0,0.12168298]
[1731233005655,0.36268834,79462.0,79455.0,0.09923432]
[1731233005852,0.00188834,79462.0,79456.0,0.00393432]
[1731233006058,0.00188834,79462.0,79457.0,0.00393432]
[1731233006363,0.00188834,79462.0,79458.0,0.00393432]
[1731233006566,0.00188834,79462.0,79459.0,0.00393432]
[1731233006760,0.00188834,79462.0,79460.0,0.00393432]
[1731233006956,0.00188834,79462.0,79461.0,0.00393432]
[1731233008768,0.00188834,79462.0,79460.0,0.12168298]
[1731233008964,0.00188834,79462.0,79461.0,0.00393383]
[1731233011264,0.00188834,79462.0,79460.0,0.12168298]
[1731233012372,0.02518445,79469.0,79460.0,0.12168298]
[1731233015369,0.3608,79461.0,79455.0,0.0321]
[1731233015567,0.12168298,79459.0,79446.0,0.0321]
[1731233015765,0.3608,79453.0,79446.0,0.0321]
[1731233016459,0.3608,79453.0,79443.0,0.0326]
[1731233017366,0.3608,79453.0,79442.0,0.3608]
[1731233018258,0.48248298,79453.0,79442.0,0.3608]
[1731233018465,0.3608,79446.0,79430.0,0.0316]
[1731233018767,0.5032,79446.0,79434.0,0.12168298]
[1731233021265,0.5032,79446.0,79430.0,0.0316]
[1731233021465,0.5032,79446.0,79428.0,0.00138]
[1731233021665,0.3608,79437.0,79428.0,0.00138]
[1731233021868,0.0305,79436.0,79429.0,0.12168298]
[1731233022578,0.00015386,79435.0,79429.0,0.12168298]
[1731233023073,0.00015386,79435.0,79428.0,0.00138]
[1731233023279,0.00015386,79435.0,79429.0,0.12168298]
[1731233023586,0.00015386,79435.0,79428.0,0.00138]
[1731233023587,0.00015386,79435.0,79434.0,0.12168298]
[1731233023877,0.13631386,79435.0,79434.0,0.12168298]
[1731233024877,0.13631386,79435.0,79428.0,0.12306298]
[1731233026379,0.13631386,79435.0,79428.0,0.00138]
[1731233027178,0.48248298,79429.0,79428.0,0.00138]
[1731233027774,0.3608,79429.0,79428.0,0.00138]
[1731233034601,0.48248298,79429.0,79428.0,0.00138]
[1731233036695,0.61864298,79429.0,79428.0,0.00138]
[1731233036885,0.61864298,79429.0,79428.0,0.05174007]
[1731233038292,0.61864298,79429.0,79424.0,0.02759996]
[1731233038293,0.99632298,79429.0,79424.0,0.02759996]
[1731233038484,0.3608,79425.0,79408.0,0.0321]
[1731233038700,0.3608,79416.0,79415.0,0.02850745]
[1731233039804,0.48248298,79416.0,79415.0,0.00012247]
[1731233040908,1.00982597,79416.0,79394.0,0.03758973]
[1731233041109,0.3608,79400.0,79389.0,0.0326]
[1731233041310,0.3608,79393.0,79389.0,0.0326]
[1731233042009,0.36094352,79393.0,79389.0,0.0326]
[1731233043414,0.4826265,79393.0,79389.0,0.0326]
[1731233043715,0.4826265,79393.0,79388.0,0.05038544]
[1731233043920,0.38937338,79393.0,79388.0,0.05038544]
[1731233045403,0.12168298,79392.0,79388.0,0.05038544]
[1731233046411,0.38937338,79393.0,79388.0,0.05038544]
[1731233046616,0.51105636,79393.0,79388.0,0.05038544]
[1731233048720,0.0305,79392.0,79388.0,0.05038544]
[1731233049017,0.38600121,79390.0,79388.0,0.05038544]
[1731233049518,0.38600121,79390.0,79377.0,0.00013231]
[1731233049722,0.3608,79380.0,79377.0,0.00013231]
[1731233050523,0.3608,79380.0,79378.0,0.00393807]
[1731233050715,0.3608,79380.0,79377.0,0.00013231]
[1731233050914,0.3608,79380.0,79378.0,0.00393807]
[1731233051109,0.3608,79380.0,79379.0,0.00393807]
[1731233051519,0.3608,79380.0,79379.0,0.00393803]
[1731233051918,0.12916,79381.0,79379.0,0.00393803]
[1731233052113,0.12916,79381.0,79380.0,0.00393803]
[1731233053021,0.12906,79381.0,79380.0,0.00393803]
[1731233054319,0.12906,79381.0,79380.0,0.01023885]
[1731233054821,0.12906,79381.0,79380.0,0.00393803]
[1731233055129,0.12906,79381.0,79380.0,0.00393795]
[1731233055424,0.3608,79382.0,79380.0,0.00393795]
[1731233055623,0.3608,79382.0,79381.0,0.01023869]
[1731233056328,0.3608,79390.0,79381.0,0.01023869]
[1731233056528,0.39582906,79390.0,79382.0,0.01023869]
[1731233056820,0.39582906,79390.0,79383.0,0.01023869]
[1731233057025,0.39582906,79390.0,79384.0,0.01023869]
[1731233057221,0.39582906,79390.0,79385.0,0.01023869]
[1731233057528,0.39582906,79390.0,79386.0,0.01023869]
[1731233057726,0.39582906,79390.0,79387.0,0.01023869]
[1731233057920,0.39582906,79390.0,79388.0,0.01023869]
[1731233058125,0.39582906,79390.0,79389.0,0.01023869]
[1731233058728,0.39582906,79390.0,79389.0,0.01023893]
[1731233060623,0.39582906,79390.0,79389.0,0.00393805]
[1731233061029,0.39582906,79390.0,79377.0,0.00013231]
[1731233061225,0.3608,79378.0,79377.0,0.00013231]
[1731233061527,0.3608,79378.0,79377.0,0.01037134]
[1731233061919,0.48248298,79378.0,79377.0,0.01037134]
[1731233062119,0.48248298,79378.0,79377.0,0.00407075]
[1731233062326,0.61168298,79378.0,79377.0,0.00407075]
[1731233063637,0.61168298,79378.0,79377.0,0.05052474]
[1731233065924,0.3608,79378.0,79377.0,0.05052474]
[1731233068834,0.3608,79383.0,79377.0,0.05052474]
[1731233069036,0.3108,79383.0,79382.0,0.12168298]
[1731233069338,0.3108,79383.0,79378.0,0.0608]
[1731233069630,0.3108,79383.0,79379.0,0.00393796]
[1731233069839,0.3108,79383.0,79377.0,0.05052474]
[1731233070037,0.3608,79390.0,79381.0,0.03763707]
[1731233070227,0.3608,79390.0,79382.0,0.00393816]
[1731233070228,0.36144,79390.0,79382.0,0.00393816]
[1731233070426,0.36144,79390.0,79383.0,0.00393816]
[1731233070735,0.3608,79390.0,79382.0,0.03763707]
[1731233070931,0.3608,79390.0,79381.0,0.03763707]
[1731233071127,0.3608,79390.0,79385.0,0.03763707]
[1731233071329,0.3608,79390.0,79386.0,0.0317]
[1731233073632,0.03489606,79393.0,79386.0,0.0317]
[1731233074937,0.00014352,79393.0,79386.0,0.0317]
[1731233075326,0.00014352,79393.0,79386.0,0.19102005]
[1731233075933,0.00014352,79393.0,79386.0,0.15338298]
[1731233076129,0.00014352,79393.0,79386.0,0.19102005]
[1731233076330,0.00014352,79393.0,79386.0,0.15338298]
[1731233076727,0.00014352,79393.0,79386.0,0.19102005]
[1731233077234,0.00014352,79393.0,79386.0,0.15338298]
[1731233077532,0.00014352,79393.0,79386.0,0.19102005]
[1731233077933,0.00014352,79393.0,79387.0,0.03763707]
[1731233078232,0.00014352,79393.0,79386.0,0.06933707]
[1731233078440,0.00014352,79393.0,79386.0,0.0317]
[1731233078639,0.36094352,79393.0,79386.0,0.0317]
[1731233080946,0.36094352,79393.0,79386.0,0.06933707]
[1731233081535,0.36094352,79393.0,79386.0,0.0317]
[1731233090752,0.36094352,79393.0,79386.0,0.06933707]
[1731233091139,0.36094352,79393.0,79387.0,0.03763707]
[1731233091745,0.36094352,79393.0,79388.0,0.03763707]
[1731233092837,0.36094352,79393.0,79387.0,0.03763707]
[1731233093444,0.36094352,79393.0,79386.0,0.03763707]
[1731233094447,0.0333,79392.0,79386.0,0.07999555]
[1731233094868,0.0637,79391.0,79386.0,0.07999555]
[1731233096144,0.0637,79391.0,79386.0,0.11763262]
[1731233096346,0.0637,79391.0,79387.0,0.03763707]
[1731233096549,0.0637,79391.0,79386.0,0.11763262]
[1731233096945,0.0637,79391.0,79386.0,0.07999555]
[1731233097249,0.0637,79391.0,79386.0,0.03763707]
[1731233097459,0.3608,79390.0,79382.0,0.03763707]
[1731233097660,0.3608,79383.0,79375.0,0.11598768]
[1731233097950,0.3608,79389.0,79375.0,0.03515213]
[1731233098145,0.07999555,79387.0,79376.0,0.07999555]
[1731233099052,0.3608,79381.0,79376.0,0.07999555]
[1731233100155,0.3608,79381.0,79380.0,0.07999555]
[1731233100341,0.12248,79387.0,79380.0,0.07999555]
[1731233100547,0.12248,79387.0,79385.0,0.07999555]
[1731233100748,0.12248,79387.0,79381.0,0.07999555]
[1731233101157,0.12248,79387.0,79386.0,0.07999555]
[1731233101355,0.12248,79387.0,79381.0,0.07999555]
[1731233101649,0.12248,79387.0,79375.0,0.03515213]
[1731233101855,0.12248,79387.0,79376.0,0.07999555]
[1731233102054,0.3608,79381.0,79376.0,0.07999555]
[1731233102953,0.3608,79381.0,79380.0,0.07999555]
[1731233104160,0.3608,79381.0,79375.0,0.03515213]
[1731233105749,0.3608,79381.0,79380.0,0.03763707]
[1731233106350,0.3608,79381.0,79379.0,0.07999555]
[1731233106559,0.3608,79381.0,79380.0,0.03772509]
[1731233106749,0.3608,79381.0,79379.0,0.07999555]
[1731233106750,0.3608,79381.0,79379.0,0.11772064]
[1731233106945,0.3608,79381.0,79380.0,0.03772509]
[1731233108457,0.3608,79381.0,79379.0,0.07999555]
[1731233108756,0.3608,79381.0,79380.0,0.03772536]
[1731233109260,0.3608,79381.0,79380.0,0.03772687]
[1731233109864,0.3608,79389.0,79379.0,0.07999555]
[1731233110161,0.14112287,79390.0,79385.0,0.11772015]
[1731233110463,0.14112287,79390.0,79386.0,0.0377246]
[1731233111354,0.07999555,79388.0,79386.0,0.0377246]
[1731233111959,0.07999555,79388.0,79385.0,0.0377246]
[1731233112258,0.11592,79389.0,79385.0,0.0377246]
[1731233112657,0.11592,79389.0,79384.0,0.07999555]
[1731233113051,0.11592,79389.0,79384.0,0.11772015]
[1731233113252,0.11592,79389.0,79383.0,0.0377246]
[1731233113949,0.11592,79389.0,79382.0,0.0377246]
[1731233114144,0.11592,79389.0,79383.0,0.0377246]
[1731233114854,0.11592,79389.0,79385.0,0.0377246]
[1731233115055,0.14112287,79390.0,79385.0,0.0377246]
[1731233115855,0.07999555,79388.0,79383.0,0.0377246]
[1731233116248,0.07999555,79384.0,79382.0,0.0377246]
[1731233116449,0.3608,79383.0,79381.0,0.0377246]
[1731233116850,0.3608,79383.0,79382.0,0.0377246]
[1731233117562,0.3608,79383.0,79381.0,0.0377246]
[1731233118254,0.3608,79383.0,79382.0,0.0377246]
[1731233118962,0.58255842,79390.0,79380.0,0.07999555]
[1731233119150,0.58191842,79390.0,79387.0,0.03773622]
[1731233120761,0.58191842,79390.0,79380.0,0.07999555]
[1731233121356,0.50192287,79390.0,79380.0,0.07999555]
[1731233123263,0.50192287,79390.0,79384.0,0.07999555]
[1731233124252,0.50192287,79390.0,79389.0,0.07999555]
[1731233124656,0.02520287,79390.0,79389.0,0.07999555]
[1731233124870,0.36094352,79393.0,79389.0,0.07999555]
[1731233125259,0.36094352,79393.0,79392.0,0.07999555]
[1731233125454,0.00014352,79393.0,79392.0,0.07999555]
[1731233125663,0.00014352,79393.0,79392.0,0.45787555]
[1731233125957,0.02520238,79410.0,79392.0,0.45787555]
[1731233126160,0.11592,79413.0,79407.0,0.07999555]
[1731233126368,0.3608,79410.0,79403.0,0.07999555]
[1731233126554,0.07999555,79404.0,79395.0,0.03]
[1731233126757,0.07999555,79400.0,79395.0,0.03]
[1731233127067,0.36089172,79399.0,79393.0,0.032]
[1731233127366,0.07999555,79396.0,79391.0,0.03962549]
[1731233127754,0.44079555,79392.0,79391.0,0.03962549]
[1731233129263,0.3608,79392.0,79391.0,0.03962549]
[1731233129456,0.3608,79392.0,79391.0,0.03773622]
[1731233130456,0.57394,79398.0,79391.0,0.03773622]
[1731233130662,0.11592,79397.0,79391.0,0.03773622]
[1731233130873,0.11592,79397.0,79393.0,0.12190452]
[1731233132566,0.3911,79398.0,79388.0,0.0325]
[1731233132767,0.11436,79397.0,79388.0,0.0325]
[1731233133367,0.11436,79397.0,79394.0,0.03771883]
[1731233134270,0.02520056,79396.0,79394.0,0.03771883]
[1731233135568,0.456657,79435.0,79395.0,1.09851819]
[1731233135770,0.456657,79435.0,79428.0,0.3608]
[1731233136468,0.1400874,79429.0,79428.0,0.48270452]
[1731233137073,0.1400874,79429.0,79428.0,0.53306459]
[1731233137270,0.08819813,79429.0,79428.0,0.91074459]
[1731233137480,0.456657,79435.0,79428.0,0.91074459]
[1731233137776,0.455937,79435.0,79434.0,0.48270452]
[1731233138367,0.410114,79435.0,79434.0,0.86038452]
[1731233138569,0.11436,79458.0,79434.0,1.16052876]
[1731233138768,0.11436,79458.0,79454.0,0.3608]
[1731233139683,0.00188846,79459.0,79454.0,0.3608]
[1731233139892,0.11624846,79459.0,79454.0,0.3608]
[1731233143883,0.00188846,79459.0,79454.0,0.3608]
[1731233145569,0.00188846,79459.0,79454.0,0.48270452]
[1731233145787,0.00188846,79459.0,79454.0,0.3608]
[1731233146283,0.00188846,79459.0,79454.0,0.48270452]
[1731233153979,0.11616846,79459.0,79454.0,0.48270452]
[1731233160786,0.11616846,79459.0,79454.0,0.53304811]
[1731233162680,0.00188846,79459.0,79458.0,0.12190452]
[1731233162888,0.00188846,79459.0,79454.0,0.53388811]
[1731233163084,0.00188846,79459.0,79455.0,0.00393368]
[1731233163284,0.00188846,79459.0,79454.0,0.53304811]
[1731233163285,0.00188846,79459.0,79456.0,0.00393368]
[1731233163585,0.00188846,79459.0,79457.0,0.00393368]
[1731233163797,0.11188,79466.0,79458.0,0.00393368]
[1731233163981,0.11188,79466.0,79454.0,0.53384811]
[1731233163982,0.11188,79466.0,79465.0,0.48270452]
[1731233164984,0.0309,79467.0,79465.0,0.48270452]
[1731233165186,0.0309,79467.0,79466.0,0.3608]
[1731233165394,0.0309,79467.0,79466.0,0.36473362]
[1731233166983,0.0765091,79467.0,79466.0,0.36473362]
[1731233167392,0.0309,79467.0,79466.0,0.41113599]
[1731233167591,0.0309,79467.0,79466.0,0.41506969]
[1731233170205,0.0309,79467.0,79466.0,0.41113599]
[1731233170595,0.07661705,79467.0,79466.0,0.41113599]
[1731233172301,0.04571705,79467.0,79466.0,0.41113599]
[1731233172597,0.0311,79472.0,79466.0,0.41113599]
[1731233172796,0.04568243,79471.0,79466.0,0.41113599]
[1731233172990,0.0319,79480.0,79466.0,0.41113599]
[1731233173192,0.0327,79484.0,79479.0,0.7216]
[1731233173397,0.11184,79490.0,79479.0,0.7216]
[1731233173904,0.11184,79490.0,79480.0,0.38137251]
[1731233174198,0.11184,79490.0,79481.0,0.12190452]
[1731233176298,0.0303,79489.0,79481.0,0.12190452]
[1731233182708,0.11184,79488.0,79481.0,0.12190452]
[1731233183607,0.0303,79489.0,79481.0,0.12190452]
[1731233184614,0.0319,79493.0,79481.0,0.12190452]
[1731233186020,0.0319,79493.0,79492.0,0.3608]
[1731233188226,0.0319,79493.0,79492.0,0.7216]
[1731233193764,0.1,79500.0,79492.0,0.7216]
[1731233193951,0.1,79500.0,79499.0,0.3608]
[1731233194255,0.20482,79512.0,79499.0,0.3608]
[1731233194256,0.0945,79512.0,79499.0,0.3608]
[1731233194454,0.0945,79512.0,79511.0,0.48270452]
[1731233196665,0.0945,79512.0,79511.0,0.3608]
[1731233198664,0.0945,79512.0,79511.0,0.48270452]
[1731233199464,0.0625,79512.0,79511.0,0.48270452]
[1731233199698,0.50072,79516.0,79511.0,0.98192904]
[1731233199860,0.50072,79516.0,79515.0,0.3608]
[1731233199861,0.5,79516.0,79515.0,0.3608]
[1731233200370,0.5,79516.0,79515.0,0.73808]
[1731233200663,0.5,79516.0,79515.0,0.3608]
[1731233201377,0.5,79516.0,79515.0,0.73808]
[1731233201869,0.5,79516.0,79515.0,0.48270452]
[1731233203266,0.5,79516.0,79515.0,0.3608]
[1731233204068,0.54630277,79516.0,79515.0,0.3608]
[1731233204462,0.5,79516.0,79515.0,0.3608]
[1731233204764,0.60962568,79516.0,79515.0,0.3608]
[1731233205169,0.73542568,79516.0,79515.0,0.3608]
[1731233205361,0.6892,79516.0,79515.0,0.3608]
[1731233205974,0.73550283,79516.0,79515.0,0.3608]
[1731233206365,0.54630283,79516.0,79515.0,0.3608]
[1731233206571,0.5,79516.0,79515.0,0.3608]
[1731233207962,0.54645808,79516.0,79515.0,0.3608]
[1731233209349,0.5,79516.0,79515.0,0.3608]
[1731233211547,0.5311,79516.0,79515.0,0.3608]
[1731233212533,0.90838,79516.0,79501.0,0.3608]
[1731233212733,0.12190452,79506.0,79501.0,0.3608]
[1731233212937,0.158,79505.0,79501.0,0.3608]
[1731233214547,0.158,79505.0,79504.0,0.12190452]
[1731233214548,0.0322,79505.0,79504.0,0.12190452]
[1731233217137,0.1258,79508.0,79504.0,0.12190452]
[1731233217344,0.1258,79508.0,79501.0,0.3608]
[1731233219641,0.0321,79515.0,79501.0,0.3608]
[1731233219841,0.1258,79514.0,79509.0,0.3608]
[1731233220034,0.1258,79514.0,79513.0,0.3608]
[1731233225450,0.1258,79514.0,79505.0,0.3608]
[1731233225743,0.12190452,79512.0,79505.0,0.3608]
[1731233225953,0.12190452,79506.0,79505.0,0.3608]
[1731233226146,0.16769473,79506.0,79505.0,0.3608]
[1731233226344,0.16769473,79506.0,79498.0,0.3608]
[1731233226541,0.12190452,79499.0,79498.0,0.3608]
[1731233226849,0.04579021,79499.0,79498.0,0.3608]
[1731233228248,0.12190452,79511.0,79498.0,0.3608]
[1731233228448,0.0974539,79510.0,79498.0,0.3608]
[1731233228850,0.0974539,79510.0,79505.0,0.0503113]
[1731233229553,0.04556671,79509.0,79505.0,0.0503113]
[1731233229852,0.04556671,79508.0,79505.0,0.0503113]
[1731233230047,0.04556671,79507.0,79505.0,0.0503113]
[1731233230247,0.40636671,79506.0,79505.0,0.0503113]
[1731233230445,0.40636671,79506.0,79495.0,0.00188687]
[1731233230645,0.12190452,79496.0,79495.0,0.00188687]
[1731233230850,0.2928848,79496.0,79495.0,0.00188687]
[1731233231854,0.2928848,79496.0,79491.0,0.3608]
[1731233232153,0.07778028,79495.0,79491.0,0.3608]
[1731233232350,0.0649,79495.0,79491.0,0.3608]
[1731233238156,0.02516615,79506.0,79493.0,0.3608]
[1731233238355,0.12552,79499.0,79494.0,0.0614]
[1731233238652,0.0302,79511.0,79497.0,0.12190452]
[1731233238653,0.12552,79502.0,79497.0,0.12190452]
[1731233238955,0.12552,79501.0,79497.0,0.12190452]
[1731233239456,0.0302,79511.0,79497.0,0.12190452]
[1731233239659,0.12552,79510.0,79497.0,0.12190452]
[1731233240251,0.12190452,79506.0,79494.0,0.0614]
[1731233241146,0.04515443,79505.0,79494.0,0.0614]
[1731233241351,0.12190452,79506.0,79494.0,0.0614]
[1731233241760,0.12552,79510.0,79495.0,0.12190452]
[1731233241950,0.04523694,79509.0,79503.0,0.3608]
[1731233242255,0.04523694,79508.0,79503.0,0.3608]
[1731233242458,0.04523694,79507.0,79503.0,0.3608]
[1731233242755,0.00188759,79512.0,79506.0,0.12190452]
[1731233242963,0.0456124,79511.0,79506.0,0.12190452]
[1731233243152,0.00188759,79512.0,79506.0,0.12190452]
[1731233244058,0.12740759,79512.0,79506.0,0.12190452]
[1731233245555,0.12740759,79512.0,79510.0,0.3608]
[1731233245756,0.24931211,79512.0,79510.0,0.3608]
[1731233246057,0.24931211,79512.0,79503.0,0.3608]
[1731233246256,0.12190452,79504.0,79503.0,0.3608]
[1731233246560,0.16708253,79504.0,79503.0,0.3608]
[1731233247149,0.21843077,79504.0,79503.0,0.3608]
[1731233247759,0.16708253,79504.0,79503.0,0.3608]
[1731233249173,0.12190452,79504.0,79503.0,0.3608]
[1731233251066,0.02797046,79505.0,79503.0,0.3608]
[1731233251256,0.12552,79506.0,79503.0,0.3608]
[1731233251457,0.12552,79505.0,79503.0,0.3608]
[1731233251873,0.12552,79507.0,79503.0,0.3608]
[1731233252063,0.12552,79507.0,79504.0,0.0328]
[1731233253069,0.12552,79507.0,79503.0,0.3608]
[1731233253271,0.12190452,79504.0,79503.0,0.3608]
[1731233253669,0.031,79506.0,79503.0,0.3608]
[1731233256863,0.031,79506.0,79495.0,0.3608]
[1731233256864,0.21815902,79505.0,79495.0,0.3608]
[1731233257068,0.12190452,79496.0,79495.0,0.3608]
[1731233257275,0.04501203,79496.0,79495.0,0.3608]
[1731233258167,0.16691655,79496.0,79495.0,0.3608]
[1731233258370,0.16691655,79496.0,79488.0,0.3608]
[1731233258371,0.16656406,79496.0,79488.0,0.3608]
[1731233258672,0.17017954,79495.0,79488.0,0.3608]
[1731233258871,0.04465954,79494.0,79488.0,0.3608]
[1731233259171,0.09503249,79493.0,79488.0,0.3608]
[1731233259482,0.04443453,79492.0,79488.0,0.3608]
[1731233259766,0.04443453,79491.0,79488.0,0.3608]
[1731233260971,0.04432589,79491.0,79488.0,0.3608]
[1731233263469,0.04435123,79493.0,79488.0,0.3608]
[1731233263668,0.04435123,79492.0,79488.0,0.3608]
[1731233263868,0.06076478,79494.0,79488.0,0.3608]
[1731233265277,0.1826693,79494.0,79488.0,0.3608]
[1731233265470,0.1826693,79494.0,79482.0,0.0314]
[1731233265471,0.48988,79493.0,79490.0,0.0001176]
[1731233265978,0.066,79492.0,79490.0,0.0001176]
[1731233266177,0.4434,79492.0,79490.0,0.0001176]
[1731233266475,0.3774,79491.0,79490.0,0.0001176]
[1731233266669,0.50648,79491.0,79490.0,0.0001176]
[1731233267775,0.12908,79491.0,79490.0,0.0001176]
[1731233268876,0.50648,79491.0,79490.0,0.0001176]
[1731233269080,0.12908,79491.0,79490.0,0.0001176]
[1731233269381,0.066,79492.0,79490.0,0.0001176]
[1731233269382,0.0327,79492.0,79490.0,0.0001176]
[1731233269578,0.12908,79491.0,79490.0,0.0001176]
[1731233270576,0.1542535,79491.0,79490.0,0.0001176]
[1731233271480,0.5316535,79491.0,79490.0,0.0001176]
[1731233275675,0.65355802,79491.0,79490.0,0.0001176]